bitfinex-derivatives/quotes_SOLF0:USTF0_20260204
["timestamp","ask_amount","ask_price","bid_price","bid_amount"]
[1770235663905,67.95815885,93.91,93.814,75.87241378]
[1770235664101,67.95815885,93.896,93.814,75.87241378]
[1770235664306,67.95815885,93.896,93.817,9.76018574]
[1770235664602,67.95815885,93.896,93.814,66.11222804]
[1770235664603,67.95815885,93.887,93.82,9.6111]
[1770235665305,67.95815885,93.887,93.829,9.6101]
[1770235665801,67.95815885,93.887,93.839,9.6091]
[1770235666104,67.95815885,93.905,93.839,9.6091]
[1770235666305,67.95815885,93.905,93.829,66.11222804]
[1770235666604,67.95815885,93.905,93.807,1.85381497]
[1770235666605,67.95815885,93.89,93.811,66.11222804]
[1770235667101,7.96322533,93.92,93.759,66.11222804]
[1770235667102,67.95815885,93.869,93.759,66.11222804]
[1770235667606,67.95815885,93.833,93.759,66.11222804]
[1770235668207,67.95815885,93.83,93.76,9.6172]
[1770235668902,67.95815885,93.827,93.748,9.6184]
[1770235669098,67.95815885,93.827,93.722,672.54334069]
[1770235669099,67.95815885,93.827,93.738,66.11222804]
[1770235669301,67.95815885,93.808,93.738,66.11222804]
[1770235669602,67.95815885,93.808,93.738,75.73172804]
[1770235670002,67.95815885,93.805,93.738,66.11222804]
[1770235670402,67.95815885,93.805,93.74,9.6192]
[1770235670910,67.95815885,93.805,93.742,66.11222804]
[1770235671599,67.95815885,93.805,93.724,1.85563877]
[1770235671807,67.95815885,93.805,93.724,67.96786681]
[1770235671996,67.95815885,93.78,93.722,672.54334069]
[1770235672502,67.95815885,93.78,93.704,66.11222804]
[1770235672700,67.95815885,93.777,93.704,66.11222804]
[1770235673502,9.6168,93.765,93.704,66.11222804]
[1770235673705,67.95815885,93.777,93.704,66.11222804]
[1770235673903,67.95815885,93.777,93.719,68.72341371]
[1770235674203,69.34535084,93.796,93.719,68.72341371]
[1770235675004,69.34535084,93.794,93.719,68.72341371]
[1770235675410,69.34535084,93.791,93.72,9.6213]
[1770235675606,69.34535084,93.791,93.719,68.72341371]
[1770235676405,69.34535084,93.786,93.719,68.72341371]
[1770235677613,69.34535084,93.786,93.732,9.62]
[1770235679210,66.90294965,93.824,93.741,67.05559343]
[1770235679712,66.90294965,93.824,93.769,9.6163]
[1770235679908,66.90294965,93.824,93.741,67.05559343]
[1770235680917,76.51634965,93.798,93.731,9.6202]
[1770235681118,66.90294965,93.798,93.701,67.05559343]
[1770235681815,66.90294965,93.798,93.719,67.05559343]
[1770235682515,149.458,93.851,93.713,9.622]
[1770235682516,66.90294965,93.777,93.713,9.622]
[1770235682910,66.90294965,93.777,93.722,9.6212]
[1770235683112,66.90294965,93.777,93.7,67.05559343]
[1770235683616,66.90294965,93.777,93.672,22.03198636]
[1770235683617,66.90294965,93.777,93.685,67.05559343]
[1770235683816,66.90294965,93.769,93.672,2.77948636]
[1770235684017,66.90294965,93.749,93.633,67.05559343]
[1770235684215,66.90294965,93.749,93.658,67.05559343]
[1770235684719,66.90294965,93.749,93.661,67.05559343]
[1770235685423,7.96322533,93.77,93.661,67.05559343]
[1770235685424,66.90294965,93.747,93.661,67.05559343]
[1770235686016,66.90294965,93.743,93.661,67.05559343]
[1770235686222,66.90294965,93.743,93.633,67.05559343]
[1770235686615,66.90294965,93.716,93.633,67.05559343]
[1770235688221,66.90294965,93.716,93.641,67.05559343]
[1770235688524,66.90294965,93.735,93.653,67.05559343]
[1770235689819,66.90294965,93.735,93.662,67.05559343]
[1770235690221,66.90294965,93.756,93.69,9.6243]
[1770235690425,66.90294965,93.756,93.69,76.67989343]
[1770235690618,66.90294965,93.778,93.69,67.05559343]
[1770235690819,66.90294965,93.778,93.68,7.96322533]
[1770235690820,66.90294965,93.778,93.703,9.623]
[1770235691016,66.90294965,93.778,93.704,67.05559343]
[1770235691626,66.90294965,93.778,93.706,9.6227]
[1770235692327,66.90294965,93.776,93.704,67.05559343]
[1770235693730,66.90294965,93.819,93.707,67.05559343]
[1770235694328,66.90294965,93.803,93.707,67.05559343]
[1770235695029,66.90294965,93.785,93.713,67.05559343]
[1770235695531,66.90294965,93.785,93.725,9.6208]
[1770235695732,149.4165,93.877,93.667,149.7504]
[1770235695733,66.90294965,93.847,93.721,67.05559343]
[1770235696232,66.90294965,93.814,93.739,67.05559343]
[1770235696627,66.90294965,93.811,93.739,67.05559343]
[1770235697436,66.90294965,93.811,93.691,67.05559343]
[1770235697632,66.90294965,93.811,93.711,67.05559343]
[1770235697935,66.90294965,93.811,93.741,67.05559343]
[1770235698440,9.6135,93.797,93.741,67.05559343]
[1770235698629,76.51644965,93.797,93.741,67.05559343]
[1770235699029,76.51754965,93.787,93.727,9.6206]
[1770235699531,76.51864965,93.775,93.719,67.05559343]
[1770235699737,76.51864965,93.775,93.645,31.87]
[1770235699738,66.90294965,93.775,93.691,67.05559343]
[1770235700136,66.90294965,93.775,93.725,9.6208]
[1770235701237,66.90294965,93.794,93.734,9.6198]
[1770235701439,66.90294965,93.794,93.714,67.05559343]
[1770235701836,9.6139,93.793,93.714,67.05559343]
[1770235702433,76.51684965,93.793,93.714,67.05559343]
[1770235702736,76.51684965,93.793,93.733,9.62]
[1770235702931,76.51684965,93.793,93.714,67.05559343]
[1770235702932,66.90294965,93.793,93.714,67.05559343]
[1770235703537,66.90294965,93.793,93.745,9.6187]
[1770235703937,70.84587203,93.812,93.731,67.05559343]
[1770235704137,70.84587203,93.812,93.762,9.617]
[1770235704338,70.84587203,93.799,93.731,67.05559343]
[1770235705538,70.84587203,93.839,93.731,67.05559343]
[1770235705836,70.84587203,93.759,93.668,9.6266]
[1770235706042,70.84587203,93.759,93.643,73.02350817]
[1770235706338,70.84587203,93.724,93.643,73.02350817]
[1770235707132,70.84587203,93.803,93.68,7.9886341]
[1770235707331,70.84587203,93.803,93.651,149.7759]
[1770235707332,70.84587203,93.803,93.701,73.02350817]
[1770235707930,70.84587203,93.803,93.632,1.85722825]
[1770235707931,70.84587203,93.784,93.685,73.02350817]
[1770235708932,9.6179,93.754,93.685,73.02350817]
[1770235709130,80.46377203,93.754,93.685,73.02350817]
[1770235709331,80.46377203,93.754,93.632,1.85722825]
[1770235709332,70.84587203,93.754,93.641,73.02350817]
[1770235709533,70.84587203,93.739,93.632,1.85722825]
[1770235709737,70.84587203,93.729,93.632,73.02350817]
[1770235710134,70.84587203,93.729,93.622,1.85753061]
[1770235710135,70.84587203,93.729,93.634,73.02350817]
[1770235710336,70.84587203,93.75,93.641,73.02350817]
[1770235710740,70.84587203,93.747,93.644,73.02350817]
[1770235711441,70.84587203,93.719,93.644,73.02350817]
[1770235712542,70.84587203,93.719,93.646,73.02350817]
[1770235712937,70.84587203,93.772,93.646,73.02350817]
[1770235713146,70.84587203,93.772,93.68,81.01214227]
[1770235713644,70.84587203,93.77,93.682,73.02350817]
[1770235714436,80.46227203,93.769,93.686,73.02350817]
[1770235715344,9.6184,93.749,93.686,73.02350817]
[1770235715743,80.46427203,93.749,93.686,73.02350817]
[1770235715943,80.46427203,93.749,93.665,73.02350817]
[1770235716538,9.6198,93.736,93.665,73.02350817]
[1770235716945,80.46567203,93.736,93.665,73.02350817]
[1770235717145,70.84587203,93.736,93.665,73.02350817]
[1770235718246,70.84587203,93.734,93.665,73.02350817]
[1770235718645,70.84587203,93.732,93.665,73.02350817]
[1770235719741,70.84587203,93.717,93.637,73.02350817]
[1770235720344,9.6238,93.697,93.637,73.02350817]
[1770235720751,70.84587203,93.696,93.612,1.85766447]
[1770235720948,9.6258,93.678,93.59,73.02350817]
[1770235721252,70.84587203,93.729,93.611,73.02350817]
[1770235721457,9.622,93.714,93.631,73.02350817]
[1770235721746,70.84587203,93.729,93.631,73.02350817]
[1770235722149,7.9886341,93.75,93.631,73.02350817]
[1770235722150,70.84587203,93.716,93.631,73.02350817]
[1770235723651,9.6225,93.709,93.65,9.6285]
[1770235724546,70.84587203,93.716,93.65,82.65200817]
[1770235724748,70.84587203,93.738,93.663,73.02350817]
[1770235726052,9.6206,93.728,93.663,73.02350817]
[1770235726247,70.84587203,93.758,93.692,73.02350817]
[1770235726453,70.84587203,93.746,93.661,73.02350817]
[1770235726951,70.84587203,93.739,93.648,82.65220817]
[1770235727148,9.6224,93.71,93.648,73.02350817]
[1770235727348,70.84587203,93.716,93.648,73.02350817]
[1770235727558,70.84587203,93.716,93.649,9.6286]
[1770235727751,9.6233,93.701,93.648,73.02350817]
[1770235727950,9.6233,93.701,93.628,73.02350817]
[1770235728151,9.6233,93.701,93.64,9.6296]
[1770235729058,70.84587203,93.692,93.63,9.6306]
[1770235729259,70.84587203,93.692,93.628,73.02350817]
[1770235730847,70.84587203,93.692,93.638,9.6298]
[1770235731551,70.84587203,93.714,93.649,9.6286]
[1770235732754,80.46787203,93.714,93.66,9.6274]
[1770235733147,70.84587203,93.714,93.627,73.02350817]
[1770235733352,9.625,93.685,93.63,9.6306]
[1770235733649,70.84587203,93.696,93.627,73.02350817]
[1770235734851,9.626,93.676,93.627,73.02350817]
[1770235735058,70.84587203,93.696,93.627,73.02350817]
[1770235736363,70.84587203,93.696,93.639,9.6297]
[1770235736657,70.84587203,93.696,93.639,64.02853065]
[1770235736850,70.84587203,93.696,93.646,9.6289]
[1770235737058,70.84587203,93.696,93.639,64.02853065]
[1770235737359,70.84587203,93.696,93.646,9.629]
[1770235737957,70.84587203,93.696,93.645,9.629]
[1770235738455,9.6241,93.694,93.645,9.629]
[1770235738961,9.6227,93.707,93.654,9.628]
[1770235739154,65.22683317,93.707,93.639,64.02853065]
[1770235739557,9.6243,93.692,93.639,64.02853065]
[1770235739759,65.22683317,93.691,93.618,65.93057062]
[1770235740560,9.6238,93.697,93.644,9.6292]
[1770235740761,65.22683317,93.71,93.638,65.93057062]
[1770235741161,65.22683317,93.71,93.641,65.93057062]
[1770235741356,65.22683317,93.732,93.641,65.93057062]
[1770235741757,65.22683317,93.732,93.669,65.93057062]
[1770235742063,65.22683317,93.732,93.651,65.93057062]
[1770235742264,9.6216,93.718,93.661,9.6274]
[1770235742455,65.22683317,93.732,93.651,65.93057062]
[1770235742861,65.22683317,93.726,93.651,65.93057062]
[1770235743565,9.9098473,93.782,93.651,65.93057062]
[1770235743566,65.22683317,93.718,93.651,65.93057062]
[1770235743761,65.22683317,93.736,93.661,65.93057062]
[1770235744562,65.22683317,93.736,93.699,9.6235]
[1770235744969,65.22683317,93.736,93.678,65.93057062]
[1770235745165,65.22683317,93.736,93.688,9.6246]
[1770235745372,65.22683317,93.736,93.678,65.93057062]
[1770235746368,9.6199,93.735,93.682,9.6252]
[1770235746969,74.84673317,93.735,93.682,9.6252]
[1770235747862,65.22683317,93.735,93.691,9.6243]
[1770235748372,65.22683317,93.735,93.678,65.93057062]
[1770235748566,65.22683317,93.735,93.689,9.6245]
[1770235748760,65.22683317,93.735,93.678,65.93057062]
[1770235748964,9.9098473,93.809,93.66,7.9886341]
[1770235748965,65.22683317,93.799,93.701,65.93057062]
[1770235749177,19.2219,93.822,93.701,65.93057062]
[1770235749178,65.22683317,93.782,93.701,65.93057062]
[1770235749568,65.22683317,93.768,93.706,9.6227]
[1770235749768,65.22683317,93.768,93.701,65.93057062]
[1770235750073,65.22683317,93.766,93.702,9.6231]
[1770235751169,65.22683317,93.762,93.702,9.6231]
[1770235751674,65.22683317,93.762,93.71,9.6223]
[1770235751872,65.22683317,93.762,93.701,65.93057062]
[1770235752669,9.6173,93.76,93.701,75.55387062]
[1770235752974,74.84413317,93.76,93.701,75.55387062]
[1770235753173,65.22683317,93.76,93.681,65.93057062]
[1770235753382,65.22683317,93.735,93.66,65.93057062]
[1770235753872,65.22683317,93.753,93.66,73.91920472]
[1770235754076,74.84493317,93.752,93.688,9.6246]
[1770235755068,65.22683317,93.77,93.683,65.93057062]
[1770235755975,65.22683317,93.77,93.666,32.09]
[1770235755976,65.22683317,93.788,93.721,65.93057062]
[1770235757476,65.22683317,93.788,93.731,9.6201]
[1770235758382,74.84173317,93.784,93.721,65.93057062]
[1770235759176,65.22683317,93.784,93.726,65.93057062]
[1770235760272,65.22683317,93.784,93.728,9.6205]
[1770235760571,65.22683317,93.784,93.691,65.93057062]
[1770235761578,9.6169,93.764,93.708,9.6225]
[1770235765274,9.6169,93.764,93.691,65.93057062]
[1770235765275,59.01482957,93.785,93.717,60.47373869]
[1770235765671,59.01482957,93.785,93.68,32.09]
[1770235765672,59.01482957,93.785,93.676,60.47373869]
[1770235765983,59.01482957,93.756,93.678,60.47373869]
[1770235766482,59.01482957,93.756,93.696,9.6237]
[1770235767774,59.01482957,93.756,93.683,60.47373869]
[1770235768677,59.01482957,93.756,93.697,9.6236]
[1770235769578,59.01482957,93.756,93.71,9.6223]
[1770235769773,59.01482957,93.775,93.711,60.47373869]
[1770235770081,59.01482957,93.772,93.704,9.623]
[1770235770682,59.01482957,93.767,93.693,9.6241]
[1770235770881,59.01482957,93.767,93.691,60.47373869]
[1770235771179,59.01482957,93.753,93.692,9.6242]
[1770235771986,59.01482957,93.753,93.699,70.09723869]
[1770235772674,59.01482957,93.773,93.709,70.09613869]
[1770235773276,59.01482957,93.773,93.718,9.6215]
[1770235773675,59.01482957,93.773,93.718,70.09523869]
[1770235773873,59.01482957,93.773,93.727,9.6206]
[1770235774073,59.01482957,93.773,93.718,60.47373869]
[1770235774479,59.01482957,93.773,93.719,9.6214]
[1770235775578,59.01482957,93.773,93.729,9.6204]
[1770235775784,59.01482957,93.798,93.718,60.47373869]
[1770235776285,1.85594061,93.842,93.701,60.47373869]
[1770235776286,59.01482957,93.784,93.701,60.47373869]
[1770235776872,59.01482957,93.762,93.684,60.47373869]
[1770235777780,68.63202957,93.762,93.684,60.47373869]
[1770235778078,68.63202957,93.762,93.697,60.47373869]
[1770235778279,68.63202957,93.762,93.706,9.6228]
[1770235778673,9.618,93.754,93.697,60.47373869]
[1770235779087,59.01482957,93.762,93.701,70.09703869]
[1770235779781,9.6174,93.759,93.701,70.09703869]
[1770235780382,68.63222957,93.759,93.701,70.09703869]
[1770235781290,59.01482957,93.759,93.709,9.6224]
[1770235781589,59.01482957,93.759,93.67,7.99064674]
[1770235781590,9.6164,93.769,93.71,60.47373869]
[1770235781782,59.01482957,93.776,93.71,60.47373869]
[1770235781979,59.01482957,93.819,93.715,60.47373869]
[1770235782388,59.01482957,93.787,93.725,9.6208]
[1770235782580,59.01482957,93.787,93.725,70.09453869]
[1770235783688,9.6148,93.785,93.725,60.47373869]
[1770235783893,59.01482957,93.832,93.759,9.6173]
[1770235784087,59.01482957,93.832,93.755,60.47373869]
[1770235784589,1.85530241,93.862,93.732,60.47373869]
[1770235784590,59.01482957,93.813,93.732,60.47373869]
[1770235785390,9.6132,93.8,93.732,70.09383869]
[1770235785691,59.01482957,93.799,93.732,70.09383869]
[1770235786286,59.01482957,93.799,93.742,9.6191]
[1770235787193,59.01482957,93.799,93.732,70.09383869]
[1770235787493,68.62812957,93.799,93.732,70.09383869]
[1770235787890,68.62812957,93.799,93.741,9.6191]
[1770235788090,68.62812957,93.799,93.732,60.47373869]
[1770235788693,59.01482957,93.861,93.757,9.6175]
[1770235788891,59.01482957,93.849,93.751,60.47373869]
[1770235789091,59.01482957,93.829,93.734,60.47373869]
[1770235789293,59.01482957,93.829,93.712,60.47373869]
[1770235789695,59.01482957,93.785,93.712,60.47373869]
[1770235790794,9.615,93.783,93.714,60.47373869]
[1770235791095,59.01482957,93.782,93.714,60.47373869]
[1770235791292,59.01482957,93.778,93.714,60.47373869]
[1770235792288,59.01482957,93.778,93.708,9.6226]
[1770235792594,9.617,93.763,93.699,60.47373869]
[1770235793095,68.63182957,93.763,93.699,60.47373869]
[1770235794290,59.01482957,93.763,93.699,70.09723869]
[1770235795193,59.01482957,93.763,93.699,60.47373869]
[1770235796093,56.35203092,93.749,93.687,64.66292571]
[1770235796395,56.35203092,93.749,93.665,9.9386503]
[1770235796601,56.35203092,93.749,93.659,55.03822571]
[1770235797194,56.35203092,93.746,93.661,55.03822571]
[1770235797796,56.35203092,93.744,93.664,55.03822571]
[1770235798902,56.35203092,93.744,93.669,49.65602056]
[1770235799291,56.35203092,93.744,93.675,49.65602056]
[1770235800094,56.35203092,93.744,93.677,9.6257]
[1770235800291,56.35203092,93.744,93.677,59.28172056]
[1770235800499,51.71413414,93.766,93.677,49.65602056]
[1770235800698,51.71413414,93.766,93.689,9.6245]
[1770235800995,51.71413414,93.766,93.695,49.65602056]
[1770235801194,51.71413414,93.784,93.695,59.59467086]
[1770235801394,51.71413414,93.784,93.697,49.65602056]
[1770235801901,51.71413414,93.755,93.676,49.65602056]
[1770235802500,51.71413414,93.755,93.678,49.65602056]
[1770235802696,51.71413414,93.755,93.684,49.65602056]
[1770235803001,51.71413414,93.755,93.688,49.65602056]
[1770235803300,51.71413414,93.755,93.67,49.65602056]
[1770235803490,51.71413414,93.749,93.652,49.65602056]
[1770235803699,9.6241,93.694,93.631,49.65602056]
[1770235804296,149.6156,93.752,93.631,49.65602056]
[1770235804297,7.99064674,93.75,93.631,59.59467086]
[1770235804603,51.71413414,93.749,93.657,49.65602056]
[1770235805391,51.71413414,93.749,93.637,32.09]
[1770235805392,9.6191,93.743,93.679,9.6256]
[1770235805902,51.71413414,93.749,93.68,49.65602056]
[1770235806798,51.71413414,93.749,93.685,49.65602056]
[1770235807506,51.71413414,93.744,93.665,49.65602056]
[1770235807900,7.99064674,93.77,93.665,59.28302056]
[1770235807901,51.71413414,93.74,93.665,59.28302056]
[1770235808297,51.71413414,93.74,93.665,49.65602056]
[1770235808498,9.6177,93.756,93.686,9.6248]
[1770235808694,9.6177,93.756,93.686,59.28082056]
[1770235809506,51.71413414,93.762,93.698,49.65602056]
[1770235810200,51.71413414,93.804,93.698,49.65602056]
[1770235810398,51.71413414,93.804,93.724,49.65602056]
[1770235810999,51.71413414,93.804,93.681,32.09]
[1770235811000,51.71413414,93.778,93.711,9.6222]
[1770235811201,51.71413414,93.778,93.705,49.65602056]
[1770235812201,51.71413414,93.778,93.686,49.65602056]
[1770235812705,51.71413414,93.753,93.686,49.65602056]
[1770235813306,9.6193,93.741,93.686,49.65602056]
[1770235813506,51.71413414,93.753,93.686,49.65602056]
[1770235813705,9.6193,93.74,93.686,49.65602056]
[1770235814006,61.33343414,93.74,93.668,59.28262056]
[1770235814203,51.71413414,93.74,93.668,49.65602056]
[1770235814911,51.71413414,93.73,93.648,9.9386503]
[1770235815104,51.71413414,93.73,93.643,59.28522056]
[1770235815299,51.71413414,93.73,93.643,49.65602056]
[1770235815503,51.71413414,93.73,93.647,49.65602056]
[1770235816910,9.6206,93.728,93.655,49.65602056]
[1770235817110,51.71413414,93.728,93.655,49.65602056]
[1770235818605,51.71413414,93.728,93.667,59.28282056]
[1770235818809,51.71413414,93.747,93.667,59.28282056]
[1770235819206,51.71413414,93.747,93.679,59.28152056]
[1770235819908,9.6188,93.745,93.679,59.28152056]
[1770235822614,51.71413414,93.767,93.689,49.65602056]
[1770235823309,51.71413414,93.749,93.691,49.65602056]
[1770235823509,51.71413414,93.749,93.662,49.65602056]
[1770235824108,9.6204,93.73,93.671,41.57798677]
[1770235824507,9.6212,93.722,93.671,41.57798677]
[1770235825612,9.6221,93.713,93.671,41.57798677]
[1770235825813,41.8237585,93.728,93.671,41.57798677]
[1770235826110,9.622,93.714,93.661,9.6274]
[1770235826512,41.8237585,93.728,93.652,51.20628677]
[1770235826806,168.816,93.772,93.652,41.57798677]
[1770235826807,9.6229,93.706,93.652,41.57798677]
[1770235827011,41.8237585,93.705,93.652,41.57798677]
[1770235828313,9.6246,93.689,93.639,9.6296]
[1770235828612,9.6246,93.689,93.622,41.57798677]
[1770235828914,9.6237,93.697,93.639,51.20768677]
[1770235829117,41.8237585,93.697,93.615,41.57798677]
[1770235829410,41.8237585,93.697,93.61,9.9386503]
[1770235829411,41.8237585,93.697,93.618,41.57798677]
[1770235830209,41.8237585,93.697,93.629,41.57798677]
[1770235830704,51.4476585,93.695,93.629,41.57798677]
[1770235830911,41.8237585,93.695,93.629,41.57798677]
[1770235831909,51.4489585,93.683,93.629,41.57798677]
[1770235833813,9.6261,93.674,93.613,41.57798677]
[1770235834317,41.8237585,93.683,93.613,41.57798677]
[1770235834910,9.6253,93.682,93.625,9.6311]
[1770235835313,9.6253,93.682,93.625,51.20908677]
[1770235835509,51.4490585,93.682,93.625,41.57798677]
[1770235835814,41.8237585,93.673,93.597,9.9386503]
[1770235836015,41.8237585,93.673,93.592,51.51663707]
[1770235836216,41.8237585,93.673,93.592,41.57798677]
[1770235836515,41.8237585,93.673,93.591,9.9386503]
[1770235836516,41.8237585,93.673,93.594,41.57798677]
[1770235836911,41.8237585,93.643,93.582,9.6355]
[1770235837108,41.8237585,93.679,93.583,41.57798677]
[1770235837314,41.8237585,93.679,93.586,51.51663707]
[1770235837710,41.8237585,93.673,93.606,41.57798677]
[1770235838012,41.8237585,93.691,93.606,41.57798677]
[1770235838311,41.8237585,93.688,93.619,41.57798677]
[1770235838617,41.8237585,93.688,93.602,41.57798677]
[1770235839818,41.8237585,93.67,93.607,41.57798677]
[1770235840016,41.8237585,93.67,93.586,41.57798677]
[1770235840214,41.8237585,93.668,93.59,41.57798677]
[1770235840818,41.8237585,93.668,93.603,9.6333]
[1770235841018,41.8237585,93.668,93.604,41.57798677]
[1770235841416,41.8237585,93.668,93.616,9.632]
[1770235842123,41.8237585,93.688,93.616,51.20998677]
[1770235842915,41.8237585,93.688,93.626,51.20898677]
[1770235844012,41.8237585,93.688,93.636,9.6299]
[1770235844419,41.8237585,93.688,93.626,41.57798677]
[1770235844620,19.2294,93.786,93.649,41.57798677]
[1770235844621,41.8237585,93.729,93.649,41.57798677]
[1770235845123,41.8237585,93.729,93.66,7.9966846]
[1770235845320,41.8237585,93.727,93.66,7.9966846]
[1770235845524,41.8237585,93.727,93.66,49.57467137]
[1770235845920,41.8237585,93.727,93.663,41.57798677]
[1770235846622,41.8237585,93.719,93.663,41.57798677]
[1770235847926,51.4453585,93.718,93.651,9.6284]
[1770235848225,41.8237585,93.708,93.644,41.57798677]
[1770235848930,9.624,93.695,93.644,41.57798677]
[1770235852125,41.8237585,93.708,93.655,9.628]
[1770235852527,9.6219,93.715,93.656,41.57798677]
[1770235852734,41.8237585,93.748,93.656,41.57798677]
[1770235852924,41.8237585,93.748,93.671,41.57798677]
[1770235853333,41.8237585,93.748,93.67,7.9966846]
[1770235853334,9.6188,93.746,93.685,51.20288677]
[1770235853532,51.4425585,93.746,93.685,51.20288677]
[1770235853932,9.6196,93.737,93.685,41.57798677]
[1770235854527,9.6196,93.737,93.62,13.14092825]
[1770235854528,9.6205,93.729,93.665,33.55945067]
[1770235854829,35.23865319,93.728,93.665,33.55945067]
[1770235855332,9.6212,93.722,93.665,33.55945067]
[1770235855929,9.6212,93.722,93.666,9.6269]
[1770235856130,9.6212,93.722,93.665,33.55945067]
[1770235856330,9.6212,93.722,93.669,9.6265]
[1770235856731,35.23865319,93.728,93.669,9.6265]
[1770235856931,35.23865319,93.726,93.669,9.6265]
[1770235857536,9.621,93.724,93.669,9.6265]
[1770235857827,9.621,93.724,93.665,33.55945067]
[1770235858537,9.621,93.724,93.666,9.6269]
[1770235859532,42.89687783,93.724,93.666,9.6269]
[1770235859728,42.89687783,93.724,93.666,42.57188358]
[1770235860331,33.27587783,93.724,93.674,32.94498358]
[1770235860734,9.6179,93.754,93.697,9.6237]
[1770235861037,33.27587783,93.759,93.698,32.94498358]
[1770235861335,9.6184,93.749,93.698,32.94498358]
[1770235862441,9.6175,93.758,93.701,9.6232]
[1770235862835,33.27587783,93.757,93.698,32.94498358]
[1770235863036,33.27587783,93.741,93.681,32.94498358]
[1770235863436,33.27587783,93.741,93.662,42.88363388]
[1770235863639,33.27587783,93.741,93.663,32.94498358]
[1770235863942,33.27587783,93.724,93.663,42.57218358]
[1770235864135,33.27587783,93.724,93.663,32.94498358]
[1770235864532,33.27587783,93.724,93.664,9.6271]
[1770235865440,9.6222,93.712,93.663,32.94498358]
[1770235865935,33.27587783,93.724,93.656,9.6279]
[1770235866141,33.27587783,93.711,93.635,9.9386503]
[1770235866340,33.27587783,93.711,93.634,42.88363388]
[1770235866533,33.27587783,93.711,93.635,32.94498358]
[1770235867134,33.27587783,93.693,93.624,9.9386503]
[1770235867340,33.27587783,93.693,93.612,32.94498358]
[1770235867642,9.6266,93.669,93.612,32.94498358]
[1770235867839,33.27587783,93.689,93.612,32.94498358]
[1770235868038,33.27587783,93.689,93.62,32.94498358]
[1770235868231,33.27587783,93.689,93.622,32.94498358]
[1770235868634,33.27587783,93.689,93.628,42.57578358]
[1770235868833,33.27587783,93.689,93.629,32.94498358]
[1770235869639,33.27587783,93.688,93.629,32.94498358]
[1770235869942,33.27587783,93.688,93.613,32.94498358]
[1770235870347,9.6261,93.674,93.615,32.94498358]
[1770235871749,9.6269,93.667,93.615,32.94498358]
[1770235872844,9.6277,93.659,93.604,9.6332]
[1770235873040,33.27587783,93.669,93.575,9.9386503]
[1770235873249,33.27587783,93.669,93.575,32.94498358]
[1770235873444,33.27587783,93.669,93.579,32.94498358]
[1770235873644,33.27587783,93.653,93.585,32.94498358]
[1770235874351,33.27587783,93.671,93.589,32.94498358]
[1770235875548,33.27587783,93.666,93.586,9.9386503]
[1770235875748,33.27587783,93.666,93.587,32.94498358]
[1770235876053,9.6291,93.646,93.587,32.94498358]
[1770235876251,42.90497783,93.646,93.587,32.94498358]
[1770235876753,33.27587783,93.646,93.587,32.94498358]
[1770235876952,33.27587783,93.664,93.591,32.94498358]
[1770235877554,9.6278,93.657,93.599,32.94498358]
[1770235877848,33.27587783,93.682,93.599,32.94498358]
[1770235878352,9.6256,93.679,93.611,9.6326]
[1770235878549,9.6256,93.679,93.612,32.94498358]
[1770235879148,42.90147783,93.679,93.612,32.94498358]
[1770235879349,9.6266,93.669,93.612,32.94498358]
[1770235880754,42.90157783,93.679,93.612,32.94498358]
[1770235880956,42.90157783,93.679,93.616,9.632]
[1770235881156,42.90157783,93.679,93.617,32.94498358]
[1770235882255,33.27587783,93.698,93.617,32.94498358]
[1770235882455,33.27587783,93.698,93.578,32.09]
[1770235882456,33.27587783,93.717,93.631,32.94498358]
[1770235882649,33.27587783,93.717,93.634,32.94498358]
[1770235883055,33.27587783,93.717,93.651,32.94498358]
[1770235883256,9.6206,93.728,93.657,32.94498358]
[1770235883458,33.27587783,93.753,93.671,32.94498358]
[1770235884462,9.6202,93.732,93.673,26.74100307]
[1770235885359,9.6202,93.732,93.674,36.36700307]
[1770235886457,9.6202,93.732,93.675,26.74100307]
[1770235887166,9.6207,93.727,93.675,26.74100307]
[1770235887369,27.52527698,93.726,93.657,26.74100307]
[1770235887760,9.621,93.724,93.66,26.74100307]
[1770235887963,37.14627698,93.724,93.66,26.74100307]
[1770235888163,27.52527698,93.723,93.66,26.74100307]
[1770235888665,9.6215,93.719,93.66,26.74100307]
[1770235889362,27.52527698,93.688,93.623,26.74100307]
[1770235890265,27.52527698,93.688,93.591,26.74100307]
[1770235890658,9.6277,93.659,93.597,26.74100307]
[1770235890864,27.52527698,93.665,93.597,26.74100307]
[1770235891160,37.15237698,93.665,93.601,26.74100307]
[1770235891964,37.15237698,93.665,93.604,26.74100307]
[1770235892859,37.15237698,93.665,93.609,36.37370307]
[1770235893268,37.15237698,93.665,93.609,26.74100307]
[1770235893664,9.6281,93.655,93.609,26.74100307]
[1770235893865,27.52527698,93.665,93.609,26.74100307]